[Event "Early-Titled-Tuesday-Blitz-April-02-2024"]
[Site "Chess.com"]
[Date "2024.04.02"]
[Round "3"]
[White "LornerAcosta"]
[Black "Flaccidmoves"]
[Result "1-0"]
[WhiteElo "2625"]
[BlackElo "2432"]
[TimeControl "180+1"]
[EndTime "8:29:30 PDT"]
[Termination "LornerAcosta won by checkmate"]

1. Nf3 {[%clk 0:03:00.9]} 1... g6 {[%clk 0:02:58.9]} 2. d4 {[%clk 0:02:58.9]}
2... Bg7 {[%clk 0:02:59.2]} 3. c3 {[%clk 0:02:57.3]} 3... d6 {[%clk 0:02:58.8]}
4. Bf4 {[%clk 0:02:58]} 4... Nf6 {[%clk 0:02:54.4]} 5. Nbd2 {[%clk 0:02:58.5]}
5... O-O {[%clk 0:02:54.5]} 6. e4 {[%clk 0:02:58]} 6... Nc6 {[%clk 0:02:45.3]}
7. Be2 {[%clk 0:02:55.5]} 7... e5 {[%clk 0:02:38.3]} 8. dxe5 {[%clk 0:02:53.6]}
8... dxe5 {[%clk 0:02:38.5]} 9. Nxe5 {[%clk 0:02:53.8]} 9... Nxe5 {[%clk
0:02:39]} 10. Bxe5 {[%clk 0:02:54.3]} 10... Re8 {[%clk 0:02:39.4]} 11. Bxf6
{[%clk 0:02:51.4]} 11... Qxf6 {[%clk 0:02:34.9]} 12. O-O {[%clk 0:02:43.8]}
12... Qb6 {[%clk 0:02:17.5]} 13. Qc2 {[%clk 0:02:40.7]} 13... Be6 {[%clk
0:02:15.2]} 14. Bc4 {[%clk 0:02:33.1]} 14... Rad8 {[%clk 0:02:11.6]} 15. Bxe6
{[%clk 0:02:29.2]} 15... Rxe6 {[%clk 0:02:11.4]} 16. Rfe1 {[%clk 0:02:15.1]}
16... Qa6 {[%clk 0:01:52.3]} 17. Nf3 {[%clk 0:02:07.3]} 17... Red6 {[%clk
0:01:47.5]} 18. a3 {[%clk 0:01:57.9]} 18... Bh6 {[%clk 0:01:46.5]} 19. Re2
{[%clk 0:01:54.1]} 19... Qc4 {[%clk 0:01:40.2]} 20. Rae1 {[%clk 0:01:47.4]}
20... a5 {[%clk 0:01:33.5]} 21. a4 {[%clk 0:01:30.8]} 21... Bg7 {[%clk
0:01:25.8]} 22. e5 {[%clk 0:01:21]} 22... Rb6 {[%clk 0:01:22.5]} 23. g3 {[%clk
0:01:03.6]} 23... Bh6 {[%clk 0:01:08.5]} 24. Kg2 {[%clk 0:00:59]} 24... Qd5
{[%clk 0:01:00.7]} 25. Re4 {[%clk 0:00:54.1]} 25... Qb3 {[%clk 0:00:51.6]} 26.
R1e2 {[%clk 0:00:35.3]} 26... Qa2 {[%clk 0:00:38.6]} 27. Nd4 {[%clk 0:00:30.3]}
27... Re8 {[%clk 0:00:16]} 28. f4 {[%clk 0:00:27.4]} 28... Qd5 {[%clk
0:00:16.2]} 29. Nf3 {[%clk 0:00:25]} 29... Bf8 {[%clk 0:00:15.8]} 30. Rd4 {[%clk
0:00:24.5]} 30... Qe6 {[%clk 0:00:15.7]} 31. Qe4 {[%clk 0:00:23.2]} 31... Qa2
{[%clk 0:00:13.4]} 32. Rdd2 {[%clk 0:00:22.1]} 32... Qb3 {[%clk 0:00:12.5]} 33.
Nd4 {[%clk 0:00:21.6]} 33... Qc4 {[%clk 0:00:11.9]} 34. Nf3 {[%clk 0:00:20.4]}
34... Qb3 {[%clk 0:00:11.8]} 35. Qc2 {[%clk 0:00:20.2]} 35... Qa2 {[%clk
0:00:11.6]} 36. Ng5 {[%clk 0:00:20]} 36... h6 {[%clk 0:00:11.3]} 37. Ne4 {[%clk
0:00:20.2]} 37... Qe6 {[%clk 0:00:11.2]} 38. Nf6+ {[%clk 0:00:19.8]} 38... Kg7
{[%clk 0:00:10.5]} 39. Qd3 {[%clk 0:00:19.6]} 39... Ra8 {[%clk 0:00:09.5]} 40.
Qd5 {[%clk 0:00:18.8]} 40... Qxd5+ {[%clk 0:00:07.7]} 41. Nxd5 {[%clk
0:00:18.7]} 41... Rb3 {[%clk 0:00:07]} 42. Nxc7 {[%clk 0:00:18.2]} 42... Rc8
{[%clk 0:00:07.7]} 43. Nb5 {[%clk 0:00:18.2]} 43... Bc5 {[%clk 0:00:05.9]} 44.
Kf3 {[%clk 0:00:17.9]} 44... g5 {[%clk 0:00:05.4]} 45. Ke4 {[%clk 0:00:17.7]}
45... Kg6 {[%clk 0:00:05.1]} 46. f5+ {[%clk 0:00:17]} 46... Kg7 {[%clk
0:00:05.3]} 47. Kd3 {[%clk 0:00:17.4]} 47... Bf8 {[%clk 0:00:04.5]} 48. Kc2
{[%clk 0:00:18]} 48... Rb4 {[%clk 0:00:04.2]} 49. Rd4 {[%clk 0:00:16.8]} 49...
Rxd4 {[%clk 0:00:03.8]} 50. Nxd4 {[%clk 0:00:17.7]} 50... h5 {[%clk 0:00:04.5]}
51. Kd3 {[%clk 0:00:17.6]} 51... Bc5 {[%clk 0:00:04.4]} 52. Nb5 {[%clk
0:00:17.3]} 52... Rd8+ {[%clk 0:00:04.6]} 53. Kc4 {[%clk 0:00:17.7]} 53... b6
{[%clk 0:00:05]} 54. e6 {[%clk 0:00:18]} 54... fxe6 {[%clk 0:00:05.1]} 55. fxe6
{[%clk 0:00:18.5]} 55... Re8 {[%clk 0:00:05.8]} 56. Kd5 {[%clk 0:00:18.6]} 56...
Kf6 {[%clk 0:00:06.1]} 57. Re4 {[%clk 0:00:15.6]} 57... Rd8+ {[%clk 0:00:06.4]}
58. Kc6 {[%clk 0:00:15.7]} 58... Re8 {[%clk 0:00:07.3]} 59. Kd7 {[%clk 0:00:16]}
59... Re7+ {[%clk 0:00:07.4]} 60. Kc6 {[%clk 0:00:16.3]} 60... Rxe6+ {[%clk
0:00:08]} 61. Rxe6+ {[%clk 0:00:16.2]} 61... Kxe6 {[%clk 0:00:08.9]} 62. Nd4+
{[%clk 0:00:15.2]} 62... Ke5 {[%clk 0:00:08.3]} 63. Nf3+ {[%clk 0:00:14.8]}
63... Kf5 {[%clk 0:00:08.7]} 64. Nd4+ {[%clk 0:00:13.9]} 64... Ke4 {[%clk
0:00:08.4]} 65. Ne6 {[%clk 0:00:14.4]} 65... Be3 {[%clk 0:00:07.6]} 66. b4
{[%clk 0:00:13.4]} 66... axb4 {[%clk 0:00:07.2]} 67. cxb4 {[%clk 0:00:14.3]}
67... g4 {[%clk 0:00:07.9]} 68. a5 {[%clk 0:00:14.1]} 68... bxa5 {[%clk
0:00:08.2]} 69. bxa5 {[%clk 0:00:15]} 69... Kf3 {[%clk 0:00:07.7]} 70. Nc5
{[%clk 0:00:15]} 70... Bg5 {[%clk 0:00:06.6]} 71. a6 {[%clk 0:00:14.9]} 71...
Bd8 {[%clk 0:00:07.2]} 72. a7 {[%clk 0:00:15.3]} 72... Kg2 {[%clk 0:00:07.6]}
73. a8=Q {[%clk 0:00:15.6]} 73... Kxh2 {[%clk 0:00:08.2]} 74. Qxd8 {[%clk
0:00:15.6]} 74... Kxg3 {[%clk 0:00:08.9]} 75. Qd6+ {[%clk 0:00:15.7]} 75... Kg2
{[%clk 0:00:08.7]} 76. Ne4 {[%clk 0:00:15.8]} 76... h4 {[%clk 0:00:09]} 77. Qd2+
{[%clk 0:00:16.3]} 77... Kh1 {[%clk 0:00:09.1]} 78. Qe1+ {[%clk 0:00:15.5]}
78... Kg2 {[%clk 0:00:09.1]} 79. Qxh4 {[%clk 0:00:15.3]} 79... g3 {[%clk
0:00:07.5]} 80. Qxg3+ {[%clk 0:00:15.5]} 80... Kh1 {[%clk 0:00:08.4]} 81. Nf2#
{[%clk 0:00:15.4]} 1-0

[Event "Early-Titled-Tuesday-Blitz-April-02-2024"]
[Site "Chess.com"]
[Date "2024.04.02"]
[Round "3"]
[White "Lucky_Puncher"]
[Black "LikeWater"]
[Result "0-1"]
[WhiteElo "2496"]
[BlackElo "2668"]
[TimeControl "180+1"]
[EndTime "8:29:40 PDT"]
[Termination "LikeWater won by resignation"]

1. d4 {[%clk 0:03:00.9]} 1... Nf6 {[%clk 0:02:59.6]} 2. c4 {[%clk 0:03:01.2]}
2... e6 {[%clk 0:02:59.8]} 3. Nc3 {[%clk 0:03:01.8]} 3... c5 {[%clk 0:02:59.9]}
4. d5 {[%clk 0:03:01.9]} 4... exd5 {[%clk 0:02:59.8]} 5. cxd5 {[%clk 0:03:02.8]}
5... d6 {[%clk 0:03:00.2]} 6. e4 {[%clk 0:03:03.4]} 6... g6 {[%clk 0:03:00.4]}
7. h3 {[%clk 0:03:03.7]} 7... Bg7 {[%clk 0:02:59]} 8. Nf3 {[%clk 0:03:04.4]}
8... O-O {[%clk 0:02:57.9]} 9. Be3 {[%clk 0:03:05.1]} 9... Re8 {[%clk
0:02:52.7]} 10. Nd2 {[%clk 0:03:05.5]} 10... Nxe4 {[%clk 0:02:46.3]} 11. Ndxe4
{[%clk 0:03:02.5]} 11... f5 {[%clk 0:02:46.8]} 12. Nxd6 {[%clk 0:03:02.9]} 12...
Qxd6 {[%clk 0:02:43.1]} 13. g3 {[%clk 0:02:55.6]} 13... Rxe3+ {[%clk 0:02:23.4]}
14. fxe3 {[%clk 0:02:54.3]} 14... Qxg3+ {[%clk 0:02:23.6]} 15. Kd2 {[%clk
0:02:51.5]} 15... f4 {[%clk 0:02:20.8]} 16. exf4 {[%clk 0:02:43.3]} 16... Bf5
{[%clk 0:01:44.9]} 17. Qe1 {[%clk 0:02:17.2]} 17... Qxf4+ {[%clk 0:01:36.7]} 18.
Qe3 {[%clk 0:02:09.8]} 18... Qh4 {[%clk 0:01:32.1]} 19. Qe8+ {[%clk 0:01:58.7]}
19... Bf8 {[%clk 0:01:32.6]} 20. Bd3 {[%clk 0:01:57.2]} 20... Na6 {[%clk
0:00:57.8]} 21. Qxa8 {[%clk 0:01:29.4]} 21... Qg5+ {[%clk 0:00:57.9]} 22. Kc2
{[%clk 0:01:19.1]} 22... Nb4+ {[%clk 0:00:58]} 23. Kb3 {[%clk 0:01:19.7]} 23...
Bxd3 {[%clk 0:00:48.7]} 24. Rhf1 {[%clk 0:01:08.2]} 24... c4+ {[%clk 0:00:27.3]}
25. Ka4 {[%clk 0:01:00.9]} 25... b5+ {[%clk 0:00:19.5]} 26. Kxb5 {[%clk
0:00:47.7]} 26... Bf5 {[%clk 0:00:08.3]} 27. Qe8 {[%clk 0:00:25.3]} 27... Kg7
{[%clk 0:00:05.3]} 28. Rxf5 {[%clk 0:00:20.5]} 28... Qxf5 {[%clk 0:00:06.2]} 29.
Qe6 {[%clk 0:00:11.4]} 29... Qc2 {[%clk 0:00:03.6]} 30. Qe5+ {[%clk 0:00:07.4]}
30... Kg8 {[%clk 0:00:02.5]} 31. Qe2 {[%clk 0:00:03]} 31... Kg7 {[%clk
0:00:03.4]} 32. Qxc2 {[%clk 0:00:03]} 32... Nxc2 {[%clk 0:00:04.3]} 33. Rf1
{[%clk 0:00:03.3]} 33... Nd4+ {[%clk 0:00:04.9]} 34. Kxc4 {[%clk 0:00:03.7]}
34... Nf5 {[%clk 0:00:04.2]} 35. Re1 {[%clk 0:00:03.9]} 35... Bd6 {[%clk
0:00:04.3]} 36. Re6 {[%clk 0:00:03.4]} 36... Bf4 {[%clk 0:00:03.2]} 37. Ne4
{[%clk 0:00:03.9]} 37... h5 {[%clk 0:00:03.4]} 38. Rb6 {[%clk 0:00:03.3]} 38...
axb6 {[%clk 0:00:03.4]} 39. Kb5 {[%clk 0:00:03.8]} 39... Be3 {[%clk 0:00:03.8]}
40. a4 {[%clk 0:00:03.9]} 40... Kf7 {[%clk 0:00:04]} 41. b4 {[%clk 0:00:04.6]}
41... Ke7 {[%clk 0:00:04]} 42. a5 {[%clk 0:00:05.5]} 42... bxa5 {[%clk
0:00:04.9]} 43. bxa5 {[%clk 0:00:06.4]} 43... Kd7 {[%clk 0:00:05.4]} 44. a6
{[%clk 0:00:06.8]} 44... Kc7 {[%clk 0:00:05.5]} 45. Nf6 {[%clk 0:00:06.1]} 45...
Nd6+ {[%clk 0:00:05.7]} 46. Kb4 {[%clk 0:00:05.5]} 46... Kb6 {[%clk 0:00:05.6]}
47. Nd7+ {[%clk 0:00:05.4]} 47... Kxa6 {[%clk 0:00:05.8]} 48. Ne5 {[%clk
0:00:06.3]} 48... g5 {[%clk 0:00:05.9]} 49. Kc3 {[%clk 0:00:05.1]} 49... Kb6
{[%clk 0:00:04.7]} 50. Kd3 {[%clk 0:00:05.1]} 50... Bf4 {[%clk 0:00:05.2]} 51.
Nf3 {[%clk 0:00:05.7]} 51... Kc5 {[%clk 0:00:05.2]} 52. Nd4 {[%clk 0:00:02.4]}
52... Kxd5 {[%clk 0:00:05.7]} 53. Ne2 {[%clk 0:00:03.3]} 53... Ke5 {[%clk
0:00:05.8]} 54. Nc3 {[%clk 0:00:03.7]} 54... Nf5 {[%clk 0:00:05.8]} 55. Ke2
{[%clk 0:00:04.6]} 55... Nd4+ {[%clk 0:00:05.6]} 56. Kf2 {[%clk 0:00:05.1]}
56... Bd2 {[%clk 0:00:05.8]} 57. Nd1 {[%clk 0:00:05.4]} 57... Kf4 {[%clk
0:00:05.9]} 58. Kg2 {[%clk 0:00:06]} 58... Be3 {[%clk 0:00:05.1]} 59. Nb2 {[%clk
0:00:06.1]} 59... Ke4 {[%clk 0:00:05.4]} 60. Nd1 {[%clk 0:00:06.5]} 60... Ne6
{[%clk 0:00:05.7]} 61. Nc3+ {[%clk 0:00:06.8]} 61... Kd3 {[%clk 0:00:05.5]} 62.
Nd5 {[%clk 0:00:07.5]} 62... Bd2 {[%clk 0:00:05.4]} 63. Nf6 {[%clk 0:00:07.7]}
63... Nf4+ {[%clk 0:00:04.6]} 64. Kg3 {[%clk 0:00:08.3]} 64... Be1+ {[%clk
0:00:05]} 65. Kh2 {[%clk 0:00:07.9]} 65... Ke3 {[%clk 0:00:05.6]} 66. Nd7 {[%clk
0:00:06.2]} 66... g4 {[%clk 0:00:05.4]} 67. hxg4 {[%clk 0:00:06.8]} 67... hxg4
{[%clk 0:00:06.3]} 68. Ne5 {[%clk 0:00:07]} 68... g3+ {[%clk 0:00:06.6]} 69. Kh1
{[%clk 0:00:05]} 69... g2+ {[%clk 0:00:06.8]} 70. Kh2 {[%clk 0:00:05.9]} 70...
Bg3+ {[%clk 0:00:06.8]} 71. Kxg3 {[%clk 0:00:03.5]} 71... g1=Q+ {[%clk 0:00:07]}
0-1

[Event "Early-Titled-Tuesday-Blitz-April-02-2024"]
[Site "Chess.com"]
[Date "2024.04.02"]
[Round "3"]
[White "scarabee43"]
[Black "JiaHaoxiang"]
[Result "0-1"]
[WhiteElo "2806"]
[BlackElo "2580"]
[TimeControl "180+1"]
[EndTime "8:29:55 PDT"]
[Termination "JiaHaoxiang won by resignation"]

1. Nf3 {[%clk 0:03:00.9]} 1... Nf6 {[%clk 0:02:59.2]} 2. c4 {[%clk 0:03:01.1]}
2... c6 {[%clk 0:02:59.1]} 3. d4 {[%clk 0:02:57.8]} 3... d5 {[%clk 0:02:58.8]}
4. Nc3 {[%clk 0:02:57.6]} 4... dxc4 {[%clk 0:02:58.8]} 5. a4 {[%clk 0:02:57.2]}
5... Bf5 {[%clk 0:02:58.7]} 6. e3 {[%clk 0:02:57.4]} 6... e6 {[%clk 0:02:58.6]}
7. Bxc4 {[%clk 0:02:57.7]} 7... Bb4 {[%clk 0:02:59.1]} 8. O-O {[%clk 0:02:57.3]}
8... O-O {[%clk 0:02:59.3]} 9. Qe2 {[%clk 0:02:54.2]} 9... Nbd7 {[%clk
0:02:58.9]} 10. e4 {[%clk 0:02:52.5]} 10... Bg6 {[%clk 0:02:58.3]} 11. e5 {[%clk
0:02:50.1]} 11... Nd5 {[%clk 0:02:58.4]} 12. Ne4 {[%clk 0:02:47.2]} 12... Be7
{[%clk 0:02:40.3]} 13. a5 {[%clk 0:02:43.4]} 13... b5 {[%clk 0:02:34.4]} 14.
axb6 {[%clk 0:02:31.7]} 14... axb6 {[%clk 0:02:34.2]} 15. Bd2 {[%clk 0:02:29.1]}
15... b5 {[%clk 0:02:32.1]} 16. Bd3 {[%clk 0:02:24.1]} 16... Qb6 {[%clk
0:02:30.5]} 17. h3 {[%clk 0:02:09.7]} 17... c5 {[%clk 0:02:14.6]} 18. dxc5
{[%clk 0:02:01.2]} 18... Nxc5 {[%clk 0:02:14.1]} 19. Nxc5 {[%clk 0:02:01.4]}
19... Bxc5 {[%clk 0:02:13.7]} 20. Bxb5 {[%clk 0:01:51.7]} 20... Rab8 {[%clk
0:02:11.9]} 21. Bc4 {[%clk 0:01:42.4]} 21... Qxb2 {[%clk 0:02:10.6]} 22. Rfc1
{[%clk 0:01:12]} 22... Rfd8 {[%clk 0:02:00.7]} 23. Ra2 {[%clk 0:01:09.2]} 23...
Qb7 {[%clk 0:01:40.7]} 24. Bg5 {[%clk 0:01:04.8]} 24... Be7 {[%clk 0:01:24]} 25.
Bxd5 {[%clk 0:00:50.8]} 25... Rxd5 {[%clk 0:01:22.9]} 26. Bxe7 {[%clk 0:00:38]}
26... Qxe7 {[%clk 0:01:21.8]} 27. Nh2 {[%clk 0:00:33.7]} 27... Qg5 {[%clk
0:01:09.9]} 28. Re1 {[%clk 0:00:29.8]} 28... h6 {[%clk 0:00:58.2]} 29. Ng4
{[%clk 0:00:21.5]} 29... Rbd8 {[%clk 0:00:54.2]} 30. g3 {[%clk 0:00:12.1]} 30...
Bh5 {[%clk 0:00:38.5]} 31. Kg2 {[%clk 0:00:07.7]} 31... Rd2 {[%clk 0:00:35]} 32.
Rxd2 {[%clk 0:00:07.4]} 32... Rxd2 {[%clk 0:00:35.9]} 33. Qf3 {[%clk 0:00:08.1]}
33... Bxg4 {[%clk 0:00:32.3]} 34. hxg4 {[%clk 0:00:08.2]} 34... Rd4 {[%clk
0:00:31.1]} 35. Kh3 {[%clk 0:00:06.4]} 35... Rd5 {[%clk 0:00:28.7]} 36. Qc3
{[%clk 0:00:04.1]} 36... g6 {[%clk 0:00:26]} 37. f4 {[%clk 0:00:04.6]} 37... Qd8
{[%clk 0:00:25.4]} 38. Rc1 {[%clk 0:00:05.2]} 38... Kg7 {[%clk 0:00:25.3]} 39.
Qc8 {[%clk 0:00:05.2]} 39... Qb6 {[%clk 0:00:21.9]} 40. Qc3 {[%clk 0:00:01.9]}
40... Qf2 {[%clk 0:00:21.1]} 41. Rc2 {[%clk 0:00:01.5]} 41... Qf1+ {[%clk
0:00:21.3]} 42. Rg2 {[%clk 0:00:01.3]} 42... Rd1 {[%clk 0:00:19.7]} 43. Qc2
{[%clk 0:00:01.8]} 43... Qh1+ {[%clk 0:00:19.4]} 44. Rh2 {[%clk 0:00:02.2]}
44... Qf3 {[%clk 0:00:19.5]} 45. Qg2 {[%clk 0:00:03]} 45... Qd3 {[%clk
0:00:18.3]} 46. Qe2 {[%clk 0:00:03.3]} 46... Qd8 {[%clk 0:00:18.2]} 47. Rf2
{[%clk 0:00:03]} 47... Rh1+ {[%clk 0:00:17.6]} 48. Kg2 {[%clk 0:00:03.3]} 48...
Rd1 {[%clk 0:00:16.1]} 49. f5 {[%clk 0:00:03.5]} 49... Qd5+ {[%clk 0:00:15.8]}
50. Qf3 {[%clk 0:00:03.4]} 50... gxf5 {[%clk 0:00:16.2]} 51. gxf5 {[%clk
0:00:03.5]} 51... Qxe5 {[%clk 0:00:16.4]} 52. Qg4+ {[%clk 0:00:03.9]} 52... Kh8
{[%clk 0:00:15.9]} 53. fxe6 {[%clk 0:00:04.3]} 53... Qd5+ {[%clk 0:00:15.6]} 54.
Qf3 {[%clk 0:00:02.1]} 54... fxe6 {[%clk 0:00:14.5]} 55. Kh2 {[%clk 0:00:02.1]}
55... Qxf3 {[%clk 0:00:13.3]} 56. Rxf3 {[%clk 0:00:02.7]} 56... Kg7 {[%clk
0:00:13.8]} 57. Re3 {[%clk 0:00:02.9]} 57... Kf6 {[%clk 0:00:14]} 58. Kg2 {[%clk
0:00:03.7]} 58... e5 {[%clk 0:00:14.3]} 59. Kf3 {[%clk 0:00:04.4]} 59... Rf1+
{[%clk 0:00:14.3]} 60. Kg2 {[%clk 0:00:04.6]} 60... Ra1 {[%clk 0:00:14.4]} 61.
Rf3+ {[%clk 0:00:05.1]} 61... Ke6 {[%clk 0:00:14.1]} 62. Rf8 {[%clk 0:00:05.7]}
62... Kd5 {[%clk 0:00:13.7]} 63. Rh8 {[%clk 0:00:05.5]} 63... Ra6 {[%clk
0:00:13.3]} 64. Re8 {[%clk 0:00:04.5]} 64... Ke4 {[%clk 0:00:13.3]} 65. Kf2
{[%clk 0:00:04.8]} 65... Ra2+ {[%clk 0:00:13.1]} 66. Kg1 {[%clk 0:00:05.3]}
66... Kd4 {[%clk 0:00:12.5]} 67. Re6 {[%clk 0:00:05.5]} 67... e4 {[%clk
0:00:12.4]} 68. Rxh6 {[%clk 0:00:05.3]} 68... e3 {[%clk 0:00:12.7]} 69. Re6
{[%clk 0:00:05.4]} 69... Kd3 {[%clk 0:00:12.5]} 70. Kf1 {[%clk 0:00:05.6]} 70...
Ra1+ {[%clk 0:00:11.9]} 71. Kg2 {[%clk 0:00:06.1]} 71... e2 {[%clk 0:00:12.5]}
72. Kf3 {[%clk 0:00:05.1]} 72... Rf1+ {[%clk 0:00:12]} 73. Kg4 {[%clk
0:00:05.3]} 73... e1=Q {[%clk 0:00:12.4]} 74. Rxe1 {[%clk 0:00:05.6]} 74... Rxe1
{[%clk 0:00:13.3]} 75. Kf5 {[%clk 0:00:06.5]} 75... Rf1+ {[%clk 0:00:13.1]} 76.
Ke5 {[%clk 0:00:06.6]} 76... Rg1 {[%clk 0:00:13.2]} 77. Kf4 {[%clk 0:00:06.8]}
77... Kd4 {[%clk 0:00:13.7]} 78. g4 {[%clk 0:00:07.6]} 78... Kd5 {[%clk
0:00:14.1]} 79. Kf5 {[%clk 0:00:08.1]} 79... Kd6 {[%clk 0:00:14]} 80. g5 {[%clk
0:00:07.8]} 80... Ke7 {[%clk 0:00:14.5]} 81. Kg6 {[%clk 0:00:08.4]} 81... Kf8
{[%clk 0:00:15]} 82. Kh6 {[%clk 0:00:09.1]} 82... Kg8 {[%clk 0:00:15.1]} 83. Kg6
{[%clk 0:00:09.5]} 83... Rh1 {[%clk 0:00:14.3]} 84. Kf6 {[%clk 0:00:09.9]} 84...
Kh7 {[%clk 0:00:14.6]} 85. g6+ {[%clk 0:00:10.5]} 85... Kg8 {[%clk 0:00:14.3]}
86. Kf5 {[%clk 0:00:10.5]} 86... Kg7 {[%clk 0:00:14.5]} 0-1

[Event "Early-Titled-Tuesday-Blitz-April-02-2024"]
[Site "Chess.com"]
[Date "2024.04.02"]
[Round "3"]
[White "shimastream"]
[Black "Suleyman_Chess06"]
[Result "1/2-1/2"]
[WhiteElo "3011"]
[BlackElo "2746"]
[TimeControl "180+1"]
[EndTime "8:30:02 PDT"]
[Termination "Game drawn by repetition"]

1. e4 {[%clk 0:03:00.9]} 1... e6 {[%clk 0:03:00.1]} 2. h3 {[%clk 0:02:57.3]}
2... d5 {[%clk 0:03:01]} 3. exd5 {[%clk 0:02:57.3]} 3... exd5 {[%clk 0:03:01.9]}
4. d4 {[%clk 0:02:57.9]} 4... Nc6 {[%clk 0:03:02.2]} 5. Nf3 {[%clk 0:02:57.5]}
5... Bd6 {[%clk 0:03:00.7]} 6. Bd3 {[%clk 0:02:56.9]} 6... Nge7 {[%clk 0:03:01]}
7. O-O {[%clk 0:02:56.6]} 7... O-O {[%clk 0:02:54.4]} 8. Nc3 {[%clk 0:02:48.6]}
8... Nb4 {[%clk 0:02:50.9]} 9. Bb5 {[%clk 0:02:45.8]} 9... c6 {[%clk 0:02:49.1]}
10. Be2 {[%clk 0:02:45.3]} 10... Bf5 {[%clk 0:02:47.4]} 11. Ne1 {[%clk
0:02:45.6]} 11... c5 {[%clk 0:02:28.1]} 12. dxc5 {[%clk 0:02:41.1]} 12... Bxc5
{[%clk 0:02:29]} 13. a3 {[%clk 0:02:40.4]} 13... Nbc6 {[%clk 0:02:27.3]} 14. Nd3
{[%clk 0:02:41]} 14... Bd6 {[%clk 0:02:24.3]} 15. Bf3 {[%clk 0:02:40.6]} 15...
Bc7 {[%clk 0:01:59.9]} 16. Re1 {[%clk 0:02:35.1]} 16... Qd7 {[%clk 0:01:54.5]}
17. Nc5 {[%clk 0:02:31.5]} 17... Qd6 {[%clk 0:01:54.9]} 18. Nb5 {[%clk
0:01:41.7]} 18... Qh2+ {[%clk 0:01:47.4]} 19. Kf1 {[%clk 0:01:42]} 19... Bb6
{[%clk 0:01:35.6]} 20. Be3 {[%clk 0:01:29.1]} 20... d4 {[%clk 0:00:44.5]} 21.
Nxd4 {[%clk 0:01:15.8]} 21... Rad8 {[%clk 0:00:42]} 22. b4 {[%clk 0:00:44.2]}
22... Nxd4 {[%clk 0:00:23.9]} 23. Bxd4 {[%clk 0:00:44.3]} 23... Nc6 {[%clk
0:00:24.3]} 24. c3 {[%clk 0:00:41.5]} 24... Rfe8 {[%clk 0:00:20.7]} 25. Rxe8+
{[%clk 0:00:41]} 25... Rxe8 {[%clk 0:00:21.5]} 26. Be3 {[%clk 0:00:41.6]} 26...
Ne5 {[%clk 0:00:16.2]} 27. Ke2 {[%clk 0:00:14.5]} 27... Rd8 {[%clk 0:00:13.2]}
28. Bd4 {[%clk 0:00:09.8]} 28... Nxf3 {[%clk 0:00:09.8]} 29. Kxf3 {[%clk
0:00:07.6]} 29... Re8 {[%clk 0:00:05.7]} 30. Be3 {[%clk 0:00:04.7]} 30... Bg6
{[%clk 0:00:03.9]} 31. Qd7 {[%clk 0:00:03.2]} 31... Qe5 {[%clk 0:00:03.8]} 32.
Ke2 {[%clk 0:00:02.8]} 32... Bxc5 {[%clk 0:00:03.3]} 33. bxc5 {[%clk 0:00:03.7]}
33... h5 {[%clk 0:00:03.9]} 34. Rd1 {[%clk 0:00:03.9]} 34... Re6 {[%clk
0:00:03.9]} 35. Kf1 {[%clk 0:00:04.1]} 35... Qxc3 {[%clk 0:00:04.1]} 36. Kg1
{[%clk 0:00:04.5]} 36... Qc2 {[%clk 0:00:04.4]} 37. Qd8+ {[%clk 0:00:04.2]}
37... Kh7 {[%clk 0:00:04.9]} 38. Qd2 {[%clk 0:00:04.8]} 38... Qxd2 {[%clk
0:00:03.6]} 39. Rxd2 {[%clk 0:00:05.7]} 39... b6 {[%clk 0:00:04.5]} 40. cxb6
{[%clk 0:00:05.2]} 40... axb6 {[%clk 0:00:05.4]} 41. Rb2 {[%clk 0:00:05.9]}
41... Rc6 {[%clk 0:00:05.4]} 42. Bxb6 {[%clk 0:00:05.8]} 42... Rc4 {[%clk
0:00:04.7]} 43. Ba5 {[%clk 0:00:05.4]} 43... Be4 {[%clk 0:00:04.3]} 44. Bb4
{[%clk 0:00:05.7]} 44... Bc6 {[%clk 0:00:04.6]} 45. Kh2 {[%clk 0:00:06.1]} 45...
h4 {[%clk 0:00:04.7]} 46. Rd2 {[%clk 0:00:06.6]} 46... Kg6 {[%clk 0:00:04]} 47.
Be7 {[%clk 0:00:06.7]} 47... f6 {[%clk 0:00:04]} 48. Bb4 {[%clk 0:00:06.6]}
48... Kh6 {[%clk 0:00:03.7]} 49. Rd1 {[%clk 0:00:05.8]} 49... Kg6 {[%clk
0:00:04.1]} 50. Kg1 {[%clk 0:00:06.1]} 50... Rc2 {[%clk 0:00:04.4]} 51. f3
{[%clk 0:00:06.1]} 51... Rc4 {[%clk 0:00:04.3]} 52. Kf2 {[%clk 0:00:05.8]} 52...
Rc2+ {[%clk 0:00:04.4]} 53. Kg1 {[%clk 0:00:06.3]} 53... Rc4 {[%clk 0:00:04.7]}
54. Ra1 {[%clk 0:00:06.5]} 54... Bb5 {[%clk 0:00:03]} 55. Be1 {[%clk 0:00:06.6]}
55... Bc6 {[%clk 0:00:03.1]} 56. Bf2 {[%clk 0:00:06.6]} 56... Kh5 {[%clk
0:00:03.2]} 57. Rb1 {[%clk 0:00:06.2]} 57... Rc2 {[%clk 0:00:03.3]} 58. Rb4
{[%clk 0:00:05.3]} 58... g5 {[%clk 0:00:02.4]} 59. Rb6 {[%clk 0:00:05.3]} 59...
Rc1+ {[%clk 0:00:02.8]} 60. Kh2 {[%clk 0:00:05.2]} 60... Rc2 {[%clk 0:00:03.4]}
61. Kg1 {[%clk 0:00:03.1]} 61... Rc1+ {[%clk 0:00:03.5]} 62. Kh2 {[%clk
0:00:03.8]} 62... Rc2 {[%clk 0:00:04.1]} 63. Bd4 {[%clk 0:00:02.5]} 63... Bxf3
{[%clk 0:00:03.7]} 64. Rxf6 {[%clk 0:00:03.1]} 64... Rxg2+ {[%clk 0:00:04.2]}
65. Kh1 {[%clk 0:00:03.7]} 65... Rg3+ {[%clk 0:00:03.3]} 66. Kh2 {[%clk
0:00:04.2]} 66... Be4 {[%clk 0:00:03.4]} 67. Re6 {[%clk 0:00:02.7]} 67... Bd5
{[%clk 0:00:02.8]} 68. Rd6 {[%clk 0:00:02.5]} 68... Ba8 {[%clk 0:00:02.5]} 69.
Rd8 {[%clk 0:00:02.1]} 69... Be4 {[%clk 0:00:02.4]} 70. Rh8+ {[%clk 0:00:02.1]}
70... Kg6 {[%clk 0:00:03.1]} 71. Re8 {[%clk 0:00:02.8]} 71... Rg2+ {[%clk
0:00:02.7]} 72. Kh1 {[%clk 0:00:03.2]} 72... Re2+ {[%clk 0:00:03]} 73. Kg1
{[%clk 0:00:03.4]} 73... Kf5 {[%clk 0:00:03.8]} 74. Rf8+ {[%clk 0:00:02.7]}
74... Ke6 {[%clk 0:00:03.8]} 75. Rf2 {[%clk 0:00:03.6]} 75... Re1+ {[%clk
0:00:03.8]} 76. Rf1 {[%clk 0:00:04.4]} 76... Re2 {[%clk 0:00:04.2]} 77. Rf2
{[%clk 0:00:04.8]} 77... Re1+ {[%clk 0:00:04.1]} 78. Rf1 {[%clk 0:00:05.3]}
78... Rxf1+ {[%clk 0:00:03.7]} 79. Kxf1 {[%clk 0:00:05.3]} 79... Bf5 {[%clk
0:00:04.6]} 80. Kg2 {[%clk 0:00:05.5]} 80... g4 {[%clk 0:00:05.5]} 81. hxg4
{[%clk 0:00:05.6]} 81... Bxg4 {[%clk 0:00:06.4]} 82. Kh2 {[%clk 0:00:06.3]}
82... h3 {[%clk 0:00:07.3]} 83. Bf2 {[%clk 0:00:06.7]} 83... Bf5 {[%clk
0:00:08.2]} 84. Bg3 {[%clk 0:00:06.9]} 84... Kd5 {[%clk 0:00:09.1]} 85. Bf2
{[%clk 0:00:07.8]} 85... Bc8 {[%clk 0:00:10]} 86. Bg3 {[%clk 0:00:08.7]} 86...
Kc6 {[%clk 0:00:10.9]} 87. Bh4 {[%clk 0:00:09.3]} 87... Kb5 {[%clk 0:00:11.8]}
88. Bg3 {[%clk 0:00:10.2]} 88... Ka4 {[%clk 0:00:12.7]} 89. Bd6 {[%clk
0:00:10.7]} 89... Kb3 {[%clk 0:00:13.5]} 90. Bb4 {[%clk 0:00:11.6]} 90... Ka4
{[%clk 0:00:14.4]} 91. Bd6 {[%clk 0:00:12]} 91... Kb3 {[%clk 0:00:15.3]} 92. Bb4
{[%clk 0:00:12.8]} 92... Ka4 {[%clk 0:00:16.2]} 93. Bd6 {[%clk 0:00:13.4]}
1/2-1/2